bitfinex/quotes_SOLUSD_20241115
["timestamp","ask_amount","ask_price","bid_price","bid_amount"]
[1731633921655,21.97102595,209.13,209.06,21.97102595]
[1731633921963,23.776884,209.12,209.06,21.97102595]
[1731633922848,23.776884,209.12,209.07,4.783]
[1731633923859,21.97102595,209.17,209.1,21.97102595]
[1731633924039,21.97102595,209.19,209.12,21.97102595]
[1731633924359,21.97102595,209.15,209.07,26.75402595]
[1731633925868,23.902374,209.14,209.07,21.97102595]
[1731633926042,23.776884,209.12,209.06,20.5864]
[1731633926459,23.776884,209.1,209.04,4.7836]
[1731633926858,23.776884,209.08,209.03,0.71743583]
[1731633928362,23.776884,209.08,209.03,5.50143583]
[1731633928564,26.75332595,209.11,209.03,5.50143583]
[1731633928743,23.776884,209.1,209.03,5.50143583]
[1731633929169,28.559284,209.1,209.03,5.50143583]
[1731633931742,21.97102595,209.13,209.04,21.97102595]
[1731633931949,0.1,209.18,209.08,21.97102595]
[1731633931950,4.7807,209.18,209.08,21.97102595]
[1731633932162,0.12549,209.17,209.1,21.97102595]
[1731633932473,26.75172595,209.18,209.1,21.97102595]
[1731633932973,15.09204096,209.17,209.09,14.96655096]
[1731633933452,23.776884,209.16,209.09,14.96655096]
[1731633933854,14.96655096,209.11,209.03,15.68398679]
[1731633934365,14.96655096,209.11,209.04,4.7837]
[1731633934569,14.96655096,209.08,209.03,0.71743583]
[1731633934973,23.776884,209.07,209.03,0.71743583]
[1731633935148,14.96655096,209.06,209.03,0.71743583]
[1731633935872,23.776884,209.07,209.03,0.71743583]
[1731633936254,23.776884,209.05,209.03,0.71743583]
[1731633936468,38.74343496,209.04,209.03,0.71743583]
[1731633936752,21.97675831,209.04,208.98,4.7849]
[1731633937559,26.76065831,209.04,208.97,26.76205831]
[1731633937755,23.776884,209.01,208.96,16.6481]
[1731633937954,26.76065831,209.04,208.96,21.4336]
[1731633938159,21.97675831,209.06,208.97,21.97675831]
[1731633938477,23.776884,209.02,208.96,16.6481]
[1731633938660,23.776884,209.02,208.96,21.4336]
[1731633938971,184.6306,209.08,208.96,21.4336]
[1731633938972,21.97675831,209.05,208.97,21.97675831]
[1731633939173,23.776884,209.04,208.97,21.97675831]
[1731633939382,21.97675831,209.01,208.91,15.5351]
[1731633939676,21.97675831,208.97,208.91,20.3218]
[1731633940050,45.75364231,208.99,208.92,21.97675831]
[1731633940276,21.97675831,209.01,208.92,21.97675831]
[1731633940456,26.76125831,209.01,208.92,21.97675831]
[1731633940649,23.776884,209.0,208.92,21.97675831]
[1731633941659,21.97675831,208.99,208.92,26.76315831]
[1731633942390,23.776884,208.98,208.91,15.5351]
[1731633942548,20.0,209.02,208.94,21.97675831]
[1731633942868,23.776884,209.0,208.92,21.97675831]
[1731633943351,23.776884,209.0,208.94,21.97675831]
[1731633944168,21.97675831,208.99,208.91,37.51185831]
[1731633944365,28.561684,209.0,208.93,21.97675831]
[1731633945183,28.561684,209.0,208.91,15.5351]
[1731633945550,21.97675831,208.96,208.91,15.5351]
[1731633945866,23.776884,209.0,208.94,21.97675831]
[1731633946068,28.686674,209.02,208.94,21.97675831]
[1731633946578,23.776884,209.04,208.96,21.97675831]
[1731633946749,21.97675831,209.05,208.98,21.97675831]
[1731633947169,12.19106509,209.07,209.0,21.97675831]
[1731633947374,7.40786509,209.07,209.0,21.97675831]
[1731633947576,26.75985831,209.07,209.0,21.97675831]
[1731633947767,6.1905,209.08,209.02,21.97675831]
[1731633947972,21.97675831,209.09,209.02,21.97675831]
[1731633948275,0.12549,209.09,209.02,21.97675831]
[1731633948492,21.97675831,209.09,209.02,21.97675831]
[1731633949272,23.776884,209.08,209.02,21.97675831]
[1731633950081,23.776884,209.08,208.98,21.97675831]
[1731633950082,21.97675831,209.05,208.98,21.97675831]
[1731633950277,23.776884,209.04,208.96,21.97675831]
[1731633951071,23.776884,209.04,208.98,21.97675831]
[1731633951267,45.75364231,209.05,208.93,4.7862]
[1731633951464,23.776884,209.05,208.99,21.97675831]
[1731633952078,0.12549,209.04,208.99,21.97675831]
[1731633952255,4.90929,209.04,208.97,21.97675831]
[1731633952463,23.776884,209.03,208.97,26.76195831]
[1731633953274,45.75364231,209.03,208.97,4.7852]
[1731633953477,22.10224831,209.0,208.93,21.97675831]
[1731633953659,23.776884,208.99,208.94,21.97675831]
[1731633954058,23.902374,209.0,208.94,21.97675831]
[1731633954555,23.776884,209.01,208.94,26.76265831]
[1731633954755,26.76065831,209.04,208.96,21.97675831]
[1731633954971,23.776884,209.05,208.98,21.97675831]
[1731633955374,21.97675831,209.08,209.0,21.97675831]
[1731633955586,21.97675831,209.07,208.99,21.97675831]
[1731633956063,0.12549,209.06,208.99,21.97675831]
[1731633956385,21.97675831,209.07,208.99,21.97675831]
[1731633956682,4.7833,209.06,208.99,21.97675831]
[1731633956864,23.902374,209.05,208.99,26.76155831]
[1731633957371,23.776884,209.05,208.99,26.76155831]
[1731633957569,4.7833,209.06,208.99,26.76155831]
[1731633957570,23.902374,209.06,208.99,26.76155831]
[1731633958081,21.97675831,209.09,209.01,21.97675831]
[1731633958289,167.9891,209.13,208.99,4.7848]
[1731633958290,21.97675831,209.11,209.03,21.97675831]
[1731633958664,4.7819,209.12,209.05,21.97675831]
[1731633958977,4.7819,209.12,209.05,14.97173626]
[1731633959177,14.97173626,209.1,209.02,15.8052]
[1731633959486,0.12549,209.09,209.03,14.97173626]
[1731633960183,11.0709,209.13,209.05,14.97173626]
[1731633960381,19.75313626,209.15,209.07,14.97173626]
[1731633960590,4.90739,209.12,209.05,19.75513626]
[1731633961083,14.97173626,209.15,209.07,14.97173626]
[1731633961458,0.12549,209.14,209.07,14.97173626]
[1731633961779,20.12549,209.14,209.07,14.97173626]
[1731633961972,6.1189,209.18,209.11,14.97173626]
[1731633962172,14.97173626,209.21,209.13,14.97173626]
[1731633962375,0.12549,209.2,209.13,14.97173626]
[1731633962577,14.97173626,209.18,209.1,14.97173626]
[1731633962886,0.12549,209.16,209.09,14.97173626]
[1731633963189,14.97173626,209.15,209.05,4.7835]
[1731633963498,38.74862026,209.12,209.05,19.75523626]
[1731633964170,23.776884,209.12,209.05,19.75523626]
[1731633964377,23.776884,209.12,209.06,14.97173626]
[1731633964564,4.7821,209.11,209.04,14.97173626]
[1731633965092,14.97173626,209.09,209.03,4.7838]
[1731633965291,23.776884,209.08,209.02,15.8052]
[1731633966108,14.97173626,209.07,209.02,15.8052]
[1731633966400,23.776884,209.06,209.02,15.8052]
[1731633966580,23.776884,209.08,209.02,15.8052]
[1731633966967,14.97173626,209.03,208.91,15.1865]
[1731633967169,14.97173626,209.01,208.93,14.97173626]
[1731633967472,23.776884,209.04,208.97,14.97173626]
[1731633968497,19.75573626,209.03,208.95,19.75743626]
[1731633969087,14.97173626,209.0,208.92,19.75803626]
[1731633969597,0.12549,209.0,208.94,14.97173626]
[1731633969771,15.09722626,209.0,208.92,19.75803626]
[1731633970599,19.88192626,209.0,208.92,19.75803626]
[1731633970976,23.776884,209.01,208.92,19.75803626]
[1731633970977,23.776884,209.01,208.94,14.97173626]
[1731633971170,23.776884,209.01,208.96,14.97173626]
[1731633972990,19.75563626,209.04,208.96,19.75713626]
[1731633973193,23.776884,209.03,208.96,19.75713626]
[1731633973367,35.8667,209.11,209.0,14.97173626]
[1731633973368,4.7832,209.07,209.0,14.97173626]
[1731633973573,4.7832,209.07,208.96,4.7854]
[1731633973771,0.12549,209.06,209.0,14.97173626]
[1731633974196,4.7832,209.07,209.0,19.75633626]
[1731633974379,19.75453626,209.09,209.02,14.97173626]
[1731633974581,4.7828,209.09,209.03,14.97173626]
[1731633975091,4.7828,209.09,209.02,14.97173626]
[1731633975298,19.75403626,209.11,209.03,14.97173626]
[1731633975503,15.09722626,209.1,209.03,14.97173626]
[1731633975678,34.97173626,209.09,209.02,14.97173626]
[1731633976307,14.97173626,209.09,209.02,19.75583626]
[1731633976492,14.97173626,209.1,209.02,19.75583626]
[1731633976675,20.0,209.09,209.02,19.75583626]
[1731633978400,20.0,209.09,209.0,14.97173626]
[1731633978401,14.97173626,209.06,209.0,14.97173626]
[1731633978900,23.776884,209.08,208.97,14.97173626]
[1731633978901,14.97173626,209.04,208.97,14.97173626]
[1731633979195,14.97173626,209.05,208.97,14.97173626]
[1731633979894,23.776884,209.02,208.96,14.97173626]
[1731633980687,23.776884,209.0,208.93,14.97173626]
[1731633982301,19.75613626,209.01,208.91,15.1865]
[1731633982302,38.87411026,208.98,208.91,15.1865]
[1731633982596,20.0,208.99,208.91,15.1865]
[1731633982597,20.0,208.99,208.91,34.94483626]
[1731633982901,4.7851,208.99,208.93,14.97173626]
[1731633983395,14.97173626,209.01,208.93,14.97173626]
[1731633983588,10.8182,209.02,208.96,14.97173626]
[1731633983793,23.776884,209.01,208.95,14.97173626]
[1731633983973,38.74862026,209.01,208.94,14.97173626]
[1731633984683,28.561384,209.01,208.95,14.97173626]
[1731633984901,28.561384,209.01,208.92,4.7865]
[1731633985090,28.561384,209.01,208.94,14.97173626]
[1731633985793,28.561384,209.01,208.98,14.97173626]
[1731633987481,14.97173626,209.0,208.92,14.97173626]
[1731633987787,14.97173626,209.07,208.99,14.97173626]
[1731633988000,4.7828,209.08,208.92,4.7865]
[1731633988599,15.09722626,209.07,208.99,14.97173626]
[1731633988779,4.7833,209.06,208.99,14.97173626]
[1731633988977,23.776884,209.05,209.0,14.97173626]
[1731633989201,20.0,209.04,209.0,14.97173626]
[1731633989499,20.0,209.04,208.99,14.97173626]
[1731633990100,24.7838,209.04,209.0,14.97173626]
[1731633990302,24.7838,209.04,208.99,14.97173626]
[1731633990684,24.7838,209.04,208.98,14.97173626]
[1731633991094,24.7838,209.04,208.99,14.97173626]
[1731633991312,24.7838,209.04,208.98,14.97173626]
[1731633991500,24.7838,209.04,208.97,19.75703626]
[1731633991699,24.7838,209.04,208.98,14.97173626]
[1731633992988,0.12549,209.03,208.97,14.97173626]
[1731633993185,38.87411026,209.03,208.95,14.97173626]
[1731633993397,38.74862026,208.99,208.92,14.97173626]
[1731633993587,38.74862026,208.99,208.91,14.97173626]
[1731633993789,14.97173626,208.95,208.88,14.97173626]
[1731633993989,23.776884,208.95,208.86,4.7878]
[1731633994299,14.97173626,208.96,208.88,14.97173626]
[1731633994702,23.776884,208.95,208.88,14.97173626]
[1731633995194,4.786,208.94,208.88,14.97173626]
[1731633995905,4.786,208.94,208.86,14.97173626]
[1731633995906,23.776884,208.93,208.86,14.97173626]
[1731633996206,14.97173626,208.87,208.81,0.4539427]
[1731633996390,35.17173626,208.92,208.81,0.4539427]
[1731633996391,14.97173626,208.85,208.81,0.4539427]
[1731633996595,6.0945,208.88,208.81,0.4539427]
[1731633996596,14.97173626,208.83,208.81,0.4539427]
[1731633996891,58.84862026,208.82,208.81,0.4539427]
[1731633997107,0.1,208.79,208.65,30.44323626]
[1731633997306,14.97173626,208.67,208.6,0.4539427]
[1731633997513,14.97173626,208.65,208.6,0.4539427]
[1731633997689,14.97173626,208.69,208.61,14.97173626]
[1731633998013,14.97173626,208.69,208.62,14.97173626]
[1731633998308,14.97173626,208.69,208.6,0.4539427]
[1731633998309,14.97173626,208.67,208.6,0.4539427]
[1731633998809,22.05968154,208.64,208.6,0.4539427]
[1731633999110,22.05968154,208.74,208.63,22.05968154]
[1731633999406,22.05968154,208.76,208.68,22.05968154]
[1731633999605,6.5609,208.84,208.72,22.05968154]
[1731633999979,22.05968154,208.82,208.67,22.15968154]
[1731634000185,22.05968154,208.76,208.69,22.05968154]
[1731634000392,22.05968154,208.74,208.65,20.0]
[1731634000686,22.05968154,208.74,208.67,20.0]
[1731634001187,22.05968154,208.74,208.68,4.792]
[1731634001506,45.96205554,208.8,208.73,22.05968154]
[1731634001698,23.902374,208.8,208.75,22.05968154]
[1731634002614,23.902374,208.8,208.64,28.1993]
[1731634002615,23.776884,208.75,208.65,20.0]
[1731634002907,23.776884,208.75,208.74,22.05968154]
[1731634002908,38.15820792,208.75,208.74,22.05968154]
[1731634003111,26.94777562,208.75,208.74,22.05968154]
[1731634003618,23.776884,208.77,208.72,22.05968154]
[1731634003908,23.776884,208.79,208.74,22.05968154]
[1731634004094,6.5609,208.84,208.78,22.05968154]
[1731634004301,6.5609,208.84,208.8,22.05968154]
[1731634004604,36.91128154,208.91,208.83,22.05968154]
[1731634004797,0.1,208.9,208.84,22.05968154]
[1731634004990,6.3985,208.91,208.86,22.05968154]
[1731634005383,0.12549,208.9,208.86,22.05968154]
[1731634005586,11.1853,208.91,208.86,22.05968154]
[1731634005797,11.3853,208.91,208.84,22.05968154]
[1731634005993,11.3853,208.91,208.67,22.05968154]
[1731634005994,22.05968154,208.9,208.67,0.1]
[1731634006183,0.12549,208.88,208.82,22.05968154]
[1731634006405,20.0,208.86,208.79,22.05968154]
[1731634007116,23.776884,208.85,208.79,22.05968154]
[1731634007295,23.776884,208.85,208.81,22.05968154]
[1731634007897,23.776884,208.85,208.83,22.05968154]
[1731634008210,40.63933038,208.91,208.83,22.05968154]
[1731634008408,22.05968154,208.89,208.83,22.05968154]
[1731634008600,0.12549,208.88,208.83,22.05968154]
[1731634009198,4.7874,208.88,208.81,22.05968154]
[1731634009410,22.05968154,208.87,208.79,22.05968154]
[1731634009905,0.12549,208.86,208.79,22.05968154]
[1731634010110,0.12549,208.86,208.81,22.05968154]
[1731634010311,0.22549,208.86,208.81,22.05968154]
[1731634010504,20.0,208.85,208.79,22.05968154]
[1731634010806,23.776884,208.84,208.79,22.05968154]
[1731634011598,0.12549,208.86,208.83,22.05968154]
[1731634011802,0.12549,208.86,208.7,0.1]
[1731634012118,0.12549,208.86,208.81,22.05968154]
[1731634012796,0.12549,208.86,208.83,22.05968154]
[1731634014109,28.45818154,208.91,208.83,22.05968154]
[1731634014312,6.3985,208.91,208.85,22.05968154]
[1731634014698,0.12549,208.9,208.85,22.05968154]
[1731634014909,0.12549,208.9,208.78,22.05968154]
[1731634014910,0.12549,208.9,208.87,22.05968154]
[1731634015093,6.2863,208.97,208.89,22.05968154]
[1731634015290,6.2863,208.97,208.78,22.15968154]
[1731634015291,6.2863,208.97,208.92,22.05968154]
[1731634016026,0.12549,208.96,208.92,22.05968154]
[1731634017303,20.12549,208.96,208.92,22.05968154]
[1731634017503,20.22549,208.96,208.9,22.05968154]
[1731634017804,25.01119,208.96,208.9,22.05968154]
[1731634018099,186.61119,208.96,208.88,22.05968154]
[1731634018506,22.05968154,208.95,208.88,22.05968154]
[1731634018711,20.0,208.94,208.88,22.05968154]
[1731634020093,20.0,208.95,208.9,22.05968154]
[1731634020413,6.2863,208.97,208.94,22.05968154]
[1731634020912,28.34598154,208.97,208.88,22.05968154]
[1731634021117,0.12549,208.96,208.9,22.05968154]
[1731634021521,0.12549,208.96,208.92,22.05968154]
[1731634021699,20.12549,208.96,208.92,22.05968154]
[1731634021895,20.12549,208.96,208.94,22.05968154]
[1731634022096,13.50527073,209.02,208.95,22.05968154]
[1731634022321,6.113,209.02,208.99,22.05968154]
[1731634022715,6.113,209.02,209.01,22.05968154]
[1731634022929,6.113,209.07,209.01,22.05968154]
[1731634023129,6.113,209.07,209.03,22.05968154]
[1731634023326,0.12549,209.06,209.03,22.05968154]
[1731634023509,0.12549,209.06,208.89,37.73328154]
[1731634023510,6.113,209.07,209.02,22.05968154]
[1731634023722,6.113,209.07,208.89,37.73328154]
[1731634023723,6.113,209.07,209.04,22.05968154]
[1731634024022,6.113,209.07,209.05,22.05968154]
[1731634024624,0.12549,209.06,209.04,22.05968154]
[1731634024831,6.113,209.07,209.04,22.05968154]
[1731634025516,0.12549,209.06,209.04,22.05968154]
[1731634025733,0.12549,209.06,209.01,22.05968154]
[1731634025904,0.12549,209.06,209.02,22.05968154]
[1731634026108,0.12549,209.06,209.03,22.05968154]
[1731634027810,0.12549,209.06,209.04,22.05968154]
[1731634028538,0.12549,209.06,209.05,22.05968154]
[1731634029127,4.7824,209.1,209.05,22.05968154]
[1731634029325,4.7824,209.1,209.06,22.05968154]
[1731634029653,22.05968154,209.07,208.9,20.0]
[1731634029816,0.12549,209.06,209.0,22.05968154]
[1731634030019,22.18517154,209.06,208.99,22.05968154]
[1731634030330,22.05968154,209.02,208.94,22.05968154]
[1731634030529,0.1,208.92,208.69,22.4254]
[1731634030712,0.2,208.9,208.69,22.4254]
[1731634030905,6.2419,208.89,208.69,22.4254]
[1731634031110,6.2419,208.89,208.69,22.5254]
[1731634031534,22.05968154,208.85,208.77,22.05968154]
[1731634032337,22.05968154,208.83,208.75,22.05968154]
[1731634032729,28.30158154,208.89,208.69,22.4254]
[1731634032730,22.05968154,208.84,208.76,22.05968154]
[1731634033028,22.05968154,208.85,208.77,22.05968154]
[1731634033818,22.05968154,208.85,208.78,22.05968154]
[1731634034136,22.05968154,208.85,208.77,22.05968154]
[1731634034337,22.05968154,208.85,208.78,22.05968154]
[1731634034539,22.05968154,208.87,208.79,22.05968154]
[1731634034835,22.05968154,208.88,208.81,22.05968154]
[1731634035132,22.05968154,208.87,208.8,22.05968154]
[1731634035339,189.90158154,208.89,208.81,22.05968154]
[1731634035530,22.05968154,208.88,208.81,22.05968154]
[1731634035723,22.05968154,208.86,208.69,22.4254]
[1731634035920,22.05968154,208.81,208.73,22.05968154]
[1731634036235,22.05968154,208.83,208.75,22.05968154]
[1731634036415,161.6,208.84,208.81,22.05968154]
[1731634036618,20.9935,208.89,208.82,22.05968154]
[1731634036816,43.05318154,208.89,208.82,22.05968154]
[1731634037018,6.2419,208.89,208.71,0.1]
[1731634037318,28.30158154,208.89,208.82,22.05968154]
[1731634037526,6.2419,208.89,208.83,22.05968154]
[1731634037749,0.12549,208.88,208.83,22.05968154]
[1731634038926,6.2419,208.89,208.86,22.05968154]
[1731634039131,161.6,208.91,208.86,22.05968154]
[1731634039519,0.12549,208.9,208.86,22.05968154]
[1731634039714,0.12549,208.9,208.85,22.05968154]
[1731634040023,0.12549,208.9,208.84,22.05968154]
[1731634040632,0.12549,208.9,208.85,22.05968154]
[1731634040919,0.12549,208.9,208.84,22.05968154]
[1731634041236,0.12549,208.9,208.83,22.05968154]
[1731634041443,22.18517154,208.9,208.82,22.05968154]
[1731634041743,22.18517154,208.9,208.83,22.05968154]
[1731634041946,22.05968154,208.89,208.81,22.05968154]
[1731634042234,22.18517154,208.9,208.83,22.05968154]
[1731634042420,0.12549,208.9,208.83,22.05968154]
[1731634043040,161.72549,208.9,208.83,22.05968154]
[1731634043545,183.78517154,208.9,208.83,22.05968154]
[1731634043736,183.65968154,208.89,208.81,22.05968154]
[1731634044246,6.033,208.83,208.69,15.9551]
[1731634044429,22.05968154,208.82,208.69,15.8551]
[1731634044740,22.05968154,208.81,208.73,22.05968154]
[1731634045035,22.05968154,208.81,208.74,22.05968154]
[1731634045339,22.05968154,208.81,208.72,22.05968154]
[1731634045520,22.05968154,208.79,208.7,22.05968154]
[1731634045721,161.7,208.8,208.7,22.05968154]
[1731634045722,22.05968154,208.77,208.7,22.05968154]
[1731634046146,161.7,208.8,208.71,22.05968154]
[1731634046147,22.05968154,208.79,208.71,22.05968154]
[1731634047123,161.6,208.8,208.76,22.05968154]
[1731634047324,161.6,208.8,208.74,22.05968154]
[1731634048421,183.65968154,208.8,208.72,22.05968154]
[1731634048827,22.15968154,208.78,208.7,22.05968154]
[1731634049941,161.6,208.79,208.74,22.05968154]
[1731634050122,161.6,208.79,208.67,22.05968154]
[1731634050123,161.6,208.79,208.75,22.05968154]
[1731634050323,161.7,208.81,208.75,22.05968154]
[1731634050633,6.033,208.83,208.77,22.05968154]
[1731634050827,0.1,208.76,208.61,16.3403]
[1731634051027,0.1,208.67,208.6,0.4539427]
[1731634051316,166.3924,208.66,208.6,0.4539427]
[1731634051745,0.12549,208.65,208.6,0.4539427]
[1731634053537,22.05968154,208.63,208.6,0.4539427]
[1731634055154,22.05968154,208.61,208.6,0.4539427]
[1731634055645,22.05968154,208.63,208.6,0.4539427]
[1731634057047,22.05968154,208.61,208.6,0.4539427]
[1731634060856,161.7,208.71,208.6,0.4539427]
[1731634061036,22.05968154,208.68,208.61,22.05968154]
[1731634061236,22.05968154,208.7,208.61,22.05968154]
[1731634063052,0.12549,208.69,208.61,22.05968154]
[1731634063252,22.05968154,208.7,208.61,22.05968154]
[1731634064269,22.05968154,208.68,208.6,22.51362424]
[1731634065353,22.05968154,208.67,208.6,0.4539427]
[1731634065964,22.05968154,208.62,208.6,0.4539427]
[1731634067854,4.7936,208.61,208.6,0.4539427]
[1731634069545,11.15,208.61,208.6,0.4539427]
[1731634069751,11.15,208.61,208.38,15.4515]
[1731634069752,0.2,208.6,208.43,22.05968154]
[1731634069940,22.05968154,208.5,208.43,22.05968154]
[1731634070442,22.05968154,208.52,208.43,22.05968154]
[1731634070644,22.05968154,208.52,208.38,15.4515]
[1731634070844,22.05968154,208.52,208.44,22.05968154]
[1731634071764,26.85538154,208.52,208.44,22.05968154]
[1731634071933,30.0,208.49,208.44,22.05968154]
[1731634072139,30.0,208.49,208.42,22.05968154]
[1731634073865,34.7964,208.49,208.42,22.05968154]
[1731634075359,30.0,208.49,208.42,22.05968154]
[1731634075956,56.85608154,208.49,208.42,22.05968154]
[1731634076456,22.05968154,208.47,208.4,22.05968154]
[1731634076669,34.7964,208.49,208.38,15.4515]
[1731634076670,30.0,208.49,208.42,22.05968154]
[1731634077734,52.05968154,208.49,208.38,15.4515]
[1731634077943,52.05968154,208.49,208.42,22.05968154]
[1731634078159,56.85608154,208.49,208.42,22.05968154]
[1731634078458,52.05968154,208.49,208.42,22.05968154]
[1731634078651,22.05968154,208.49,208.42,22.05968154]
[1731634078857,22.05968154,208.55,208.48,22.05968154]
[1731634079061,22.05968154,208.57,208.5,22.05968154]
[1731634079255,6.3564,208.61,208.45,22.05968154]
[1731634079256,22.05968154,208.59,208.52,22.05968154]
[1731634079756,28.41608154,208.61,208.52,22.05968154]
[1731634079971,22.05968154,208.6,208.53,22.05968154]
[1731634080764,26.85328154,208.61,208.53,22.05968154]
[1731634080945,4.7936,208.61,208.54,22.05968154]
[1731634081140,22.05968154,208.58,208.5,38.62958154]
[1731634081546,22.18517154,208.6,208.52,22.05968154]
[1731634081862,22.18517154,208.6,208.5,16.5699]
[1731634081863,30.0,208.54,208.5,16.5699]
[1731634082081,30.0,208.54,208.53,22.05968154]
[1731634082567,26.85258154,208.64,208.53,22.05968154]
[1731634082780,26.85258154,208.64,208.56,22.05968154]
[1731634082945,22.05968154,208.64,208.56,22.05968154]
[1731634083447,0.12549,208.63,208.56,22.05968154]
[1731634083955,22.05968154,208.68,208.6,22.05968154]
[1731634084161,22.05968154,208.67,208.6,22.05968154]
[1731634084366,4.7921,208.68,208.6,22.05968154]
[1731634084572,4.7921,208.68,208.46,6.1461]
[1731634084573,4.7909,208.73,208.64,22.05968154]
[1731634084776,22.05968154,208.71,208.63,22.05968154]
[1731634084942,22.05968154,208.71,208.64,22.05968154]
[1731634085148,22.05968154,208.71,208.63,22.05968154]
[1731634085649,26.85108154,208.71,208.63,22.05968154]
[1731634085849,22.05968154,208.69,208.57,6.4055]
[1731634086050,22.05968154,208.59,208.5,16.246]
[1731634086266,22.05968154,208.59,208.39,0.5539427]
[1731634086267,0.12549,208.6,208.46,22.05968154]
[1731634086454,22.05968154,208.52,208.44,22.05968154]
[1731634086972,22.05968154,208.54,208.46,22.05968154]
[1731634087162,30.0,208.51,208.46,22.05968154]
[1731634087344,30.0,208.51,208.48,22.05968154]
[1731634087749,30.0,208.51,208.5,22.05968154]
[1731634088044,26.85358154,208.6,208.5,22.05968154]
[1731634088247,26.85358154,208.6,208.53,22.05968154]
[1731634088765,0.12549,208.59,208.53,22.05968154]
[1731634090254,4.91959,208.59,208.53,22.05968154]
[1731634091071,0.12549,208.59,208.55,22.05968154]
[1731634091266,6.3075,208.67,208.45,22.05968154]
[1731634091267,22.05968154,208.66,208.57,22.05968154]
[1731634091472,26.85178154,208.68,208.6,22.05968154]
[1731634092451,0.12549,208.67,208.64,22.05968154]
[1731634092676,22.05968154,208.72,208.64,22.05968154]
[1731634092845,26.85088154,208.72,208.64,22.05968154]
[1731634093054,22.05968154,208.7,208.64,22.05968154]
[1731634094072,22.05968154,208.74,208.66,22.05968154]
[1731634094273,26.85038154,208.74,208.66,22.05968154]
[1731634094648,4.7907,208.74,208.68,22.05968154]
[1731634095586,0.12549,208.72,208.68,22.05968154]
[1731634095872,0.12549,208.72,208.69,22.05968154]
[1731634096465,23.776884,208.73,208.69,22.05968154]
[1731634096654,23.776884,208.75,208.69,22.05968154]
[1731634097282,4.7898,208.78,208.71,22.05968154]
[1731634097460,4.7898,208.78,208.72,22.05968154]
[1731634097864,0.12549,208.77,208.71,22.05968154]
[1731634098071,22.05968154,208.76,208.69,22.05968154]
[1731634098383,22.05968154,208.74,208.57,20.1]
[1731634098596,0.12549,208.77,208.68,22.05968154]
[1731634098597,23.776884,208.75,208.68,22.05968154]
[1731634098779,22.05968154,208.74,208.67,22.05968154]
[1731634099085,23.776884,208.73,208.67,22.05968154]
[1731634100383,23.776884,208.71,208.64,22.05968154]
[1731634100679,23.776884,208.71,208.67,22.05968154]
[1731634101058,23.776884,208.71,208.66,22.05968154]
[1731634101683,23.776884,208.71,208.67,22.05968154]
[1731634101976,23.776884,208.71,208.66,22.05968154]
[1731634102180,28.568184,208.71,208.66,22.05968154]
[1731634102361,23.776884,208.72,208.68,22.05968154]
[1731634103462,23.776884,208.73,208.68,22.05968154]
[1731634103972,28.567284,208.75,208.68,22.05968154]
[1731634104367,4.7901,208.77,208.7,22.05968154]
[1731634104888,0.12549,208.76,208.7,22.05968154]
[1731634105596,28.49248154,208.79,208.72,22.05968154]
[1731634105767,4.7896,208.79,208.72,22.05968154]
[1731634106172,26.84928154,208.79,208.72,22.05968154]
[1731634106382,4.7896,208.79,208.72,22.05968154]
[1731634106589,4.7896,208.79,208.73,22.05968154]
[1731634107079,0.12549,208.77,208.73,22.05968154]
[1731634108490,22.05968154,208.83,208.75,22.05968154]
[1731634108866,22.18517154,208.82,208.75,22.05968154]
[1731634109085,22.05968154,208.81,208.74,22.05968154]
[1731634109483,22.18517154,208.82,208.74,22.05968154]
[1731634109683,4.789,208.81,208.75,22.05968154]
[1731634110085,23.776884,208.8,208.75,22.05968154]
[1731634110798,4.7895,208.79,208.72,22.05968154]
[1731634111090,23.776884,208.78,208.73,22.05968154]
[1731634112192,23.776884,208.77,208.72,22.05968154]
[1731634112397,45.83656554,208.77,208.7,22.05968154]
[1731634112896,23.776884,208.77,208.7,22.05968154]
[1731634113475,23.776884,208.77,208.71,22.05968154]
[1731634113884,23.776884,208.77,208.66,15.2345]
[1731634113885,23.776884,208.77,208.76,22.05968154]
[1731634114081,22.05968154,208.83,208.76,22.05968154]
[1731634114392,4.7891,208.81,208.75,22.05968154]
[1731634115096,0.12549,208.8,208.75,22.05968154]
[1731634115298,4.7891,208.81,208.76,22.05968154]
[1731634115672,4.7891,208.81,208.77,22.05968154]
[1731634115886,4.7887,208.83,208.78,22.05968154]
[1731634116200,4.7887,208.83,208.77,22.05968154]